bitfinex/quotes_SOLUSD_20251212
["timestamp","ask_amount","ask_price","bid_price","bid_amount"]
[1765561416588,0.71,131.81,131.78,8.26840491]
[1765561417698,104.3,131.82,131.78,8.26840491]
[1765561417699,104.3,131.82,131.79,8.26737728]
[1765561417904,104.3,131.82,131.79,11.62161394]
[1765561418104,104.3,131.82,131.8,0.68]
[1765561418604,104.3,131.82,131.8,4.03423666]
[1765561419217,104.3,131.82,131.8,0.68]
[1765561419699,104.3,131.82,131.81,7.58667779]
[1765561419898,109.36437181,131.82,131.81,7.58667779]
[1765561421810,121.01480202,131.82,131.79,8.3]
[1765561421993,5.77437181,131.81,131.78,7.58817146]
[1765561422187,5.06437181,131.8,131.78,7.58817146]
[1765561422388,0.71,131.8,131.78,7.58817146]
[1765561422601,0.71,131.79,131.77,7.58877037]
[1765561424305,10.94119599,131.81,131.77,7.58877037]
[1765561424507,3.35423666,131.79,131.77,7.58877037]
[1765561424813,12.38423666,131.8,131.76,7.58930798]
[1765561425021,5.77306551,131.79,131.76,7.58930798]
[1765561425317,0.71,131.79,131.76,7.58930798]
[1765561425521,0.71,131.78,131.76,7.58930798]
[1765561425694,0.71,131.78,131.75,7.69013282]
[1765561425893,0.71,131.78,131.75,8.37013282]
[1765561426392,19.26171669,131.8,131.75,8.37013282]
[1765561426593,5.77454634,131.79,131.76,0.68]
[1765561426813,0.71,131.79,131.76,0.68]
[1765561427011,9.12837716,131.78,131.75,7.69013282]
[1765561427193,4.06423666,131.78,131.75,7.69013282]
[1765561427394,0.71,131.78,131.75,7.69013282]
[1765561427595,105.01,131.78,131.75,7.69013282]
[1765561427995,0.71,131.77,131.75,7.69013282]
[1765561428716,107.65423666,131.78,131.75,7.69013282]
[1765561429020,0.71,131.77,131.75,7.69013282]
[1765561429406,105.01,131.78,131.75,8.37013282]
[1765561429608,5.770179,131.77,131.75,7.69013282]
[1765561429911,0.71,131.77,131.75,7.69013282]
[1765561430093,5.05964107,131.77,131.75,7.69013282]
[1765561430290,5.75964107,131.77,131.75,0.1]
[1765561430497,0.7,131.76,131.75,0.1]
[1765561430697,5.75964107,131.77,131.75,0.1]
[1765561431323,0.7,131.77,131.75,0.1]
[1765561431730,111.8884217,131.78,131.75,0.1]
[1765561431892,104.3,131.78,131.76,4.03423666]
[1765561432313,104.3,131.78,131.77,0.68]
[1765561432790,104.3,131.78,131.76,0.68]
[1765561433825,104.3,131.78,131.76,8.26938865]
[1765561434213,104.3,131.78,131.76,7.58938865]
[1765561434409,104.3,131.78,131.76,8.26938865]
[1765561434804,104.3,131.78,131.77,0.68]
[1765561435810,104.3,131.78,131.77,8.26898079]
[1765561436021,0.7,131.8,131.77,8.26898079]
[1765561436213,5.06185142,131.79,131.77,8.26898079]
[1765561436419,0.7,131.8,131.77,8.26898079]
[1765561436603,5.06292348,131.79,131.77,8.26898079]
[1765561436802,0.7,131.8,131.77,8.26898079]
[1765561437005,5.06292348,131.79,131.77,8.26898079]
[1765561437302,0.7,131.8,131.77,8.26898079]
[1765561437510,5.06393696,131.79,131.77,8.26898079]
[1765561437752,0.7,131.8,131.77,8.26898079]
[1765561437909,5.06378452,131.79,131.77,8.26898079]
[1765561438239,0.7,131.8,131.77,8.26898079]
[1765561438437,5.06436378,131.79,131.77,8.26898079]
[1765561438738,0.7,131.8,131.77,8.26898079]
[1765561438901,5.0642894,131.79,131.77,8.26898079]
[1765561439098,0.7,131.8,131.77,8.26898079]
[1765561439404,5.06527742,131.79,131.77,8.26898079]
[1765561439615,0.7,131.8,131.77,8.26898079]
[1765561439816,5.06385726,131.79,131.77,8.26898079]
[1765561440030,0.7,131.8,131.77,8.26898079]
[1765561440241,5.0646246,131.79,131.77,7.58898079]
[1765561440399,8.42082123,131.78,131.75,0.1]
[1765561440599,8.28756281,131.8,131.75,0.1]
[1765561440600,4.05619663,131.79,131.75,0.78]
[1765561440820,5.06367899,131.78,131.75,4.13619663]
[1765561441026,0.7,131.8,131.75,4.13619663]
[1765561441027,0.7,131.79,131.76,7.58933063]
[1765561441226,0.7,131.79,131.76,8.26933063]
[1765561441428,5.06220936,131.78,131.76,8.26933063]
[1765561441619,0.7,131.79,131.76,8.26933063]
[1765561441817,5.06181662,131.78,131.76,8.26933063]
[1765561442019,0.7,131.79,131.76,8.26933063]
[1765561442213,5.06181906,131.78,131.76,8.26933063]
[1765561442418,0.7,131.79,131.76,8.26933063]
[1765561442622,114.57594797,131.82,131.78,3.35619663]
[1765561442845,5.06140909,131.81,131.78,3.35619663]
[1765561443139,5.06140909,131.8,131.79,0.68]
[1765561443301,22.91710838,131.84,131.79,4.03619663]
[1765561443505,5.06408359,131.83,131.79,4.03619663]
[1765561443732,5.06408359,131.82,131.8,0.68]
[1765561443903,5.06408359,131.81,131.8,0.68]
[1765561444328,5.06408359,131.81,131.79,8.55180727]
[1765561444527,5.06408359,131.8,131.79,8.55180727]
[1765561444837,5.06408359,131.8,131.77,31.30790555]
[1765561445021,0.7,131.81,131.78,8.26803034]
[1765561445221,5.06648725,131.8,131.78,8.26803034]
[1765561445429,0.7,131.81,131.78,11.62422697]
[1765561445731,5.06762275,131.8,131.78,11.62422697]
[1765561445941,7.58622988,131.82,131.78,10.94422697]
[1765561446111,5.06841004,131.81,131.79,0.68]
[1765561446305,5.06841004,131.8,131.79,0.68]
[1765561447222,5.06841004,131.8,131.79,4.32051977]
[1765561448129,5.06787129,131.82,131.8,0.28432314]
[1765561448303,7.01201799,131.85,131.8,0.28432314]
[1765561448304,7.01201799,131.85,131.81,8.3]
[1765561448503,5.06906153,131.84,131.81,11.65619663]
[1765561448735,5.06906153,131.83,131.82,0.68]
[1765561450224,5.06906153,131.83,131.82,8.26610226]
[1765561450608,5.06906153,131.83,131.82,11.90662203]
[1765561450811,5.06841236,131.86,131.83,0.28432314]
[1765561451006,104.3,131.87,131.84,8.3]
[1765561451210,9.12401558,131.86,131.82,7.58610226]
[1765561451452,5.06781895,131.85,131.84,3.35619663]
[1765561451755,6.31201799,131.89,131.85,0.28432314]
[1765561451756,0.7,131.89,131.85,0.28432314]
[1765561452052,9.1249741,131.88,131.84,8.3]
[1765561452221,8.4249741,131.87,131.81,14.01141434]
[1765561452545,5.76877747,131.86,131.82,11.65619663]
[1765561452718,0.7,131.86,131.82,11.65619663]
[1765561452915,5.76659308,131.85,131.82,12.33619663]
[1765561453138,0.7,131.85,131.82,12.33619663]
[1765561453343,0.7,131.85,131.83,7.58551051]
[1765561454325,0.7,131.85,131.82,15.88599483]
[1765561454723,0.7,131.85,131.82,16.56599483]
[1765561455452,0.7,131.86,131.83,8.265343]
[1765561455622,0.7,131.85,131.83,7.585343]
[1765561456321,0.7,131.86,131.83,7.585343]
[1765561456520,0.7,131.86,131.83,8.265343]
[1765561456835,105.0,131.86,131.83,8.265343]
[1765561457030,104.3,131.86,131.83,7.585343]
[1765561457216,108.35619663,131.89,131.84,4.32051977]
[1765561457417,9.11830294,131.88,131.83,10.94153963]
[1765561457614,8.41830294,131.87,131.83,7.585343]
[1765561457841,4.05619663,131.87,131.83,7.585343]
[1765561458045,0.7,131.86,131.83,7.585343]
[1765561458249,105.0,131.86,131.83,7.585343]
[1765561459125,104.3,131.86,131.83,7.585343]
[1765561459334,105.0,131.86,131.83,7.585343]
[1765561459738,105.0,131.86,131.83,8.265343]
[1765561459954,105.0,131.86,131.83,7.585343]
[1765561460320,104.3,131.86,131.83,7.585343]
[1765561460629,105.0,131.86,131.83,7.585343]
[1765561460946,104.5,131.86,131.83,10.94153963]
[1765561461333,104.5,131.86,131.84,3.35619663]
[1765561461923,103.8,131.86,131.85,3.35619663]
[1765561462232,9.02,131.88,131.85,3.35619663]
[1765561462448,8.32,131.88,131.85,3.35619663]
[1765561462754,0.69,131.87,131.84,3.35619663]
[1765561462921,0.69,131.87,131.83,15.885343]
[1765561463433,0.69,131.87,131.85,3.35619663]
[1765561465252,104.49,131.89,131.86,10.93999763]
[1765561465448,104.49,131.89,131.86,11.62999763]
[1765561465655,104.49,131.89,131.87,3.35619663]
[1765561465824,0.69,131.88,131.86,10.93999763]
[1765561466029,0.69,131.88,131.86,7.583801]
[1765561466547,0.69,131.88,131.86,10.93999763]
[1765561467426,3.96083179,131.92,131.87,17.09328783]
[1765561467622,103.8,131.93,131.91,3.35619663]
[1765561467952,0.69,131.92,131.9,3.35619663]
[1765561469026,0.69,131.92,131.9,10.9374756]
[1765561469458,0.69,131.92,131.89,10.93808436]
[1765561469630,0.69,131.92,131.9,7.5813729]
[1765561470735,0.69,131.92,131.9,12.81427971]
[1765561471344,0.19,131.92,131.9,7.5813729]
[1765561471549,0.19,131.92,131.9,12.81427971]
[1765561471747,0.19,131.92,131.9,5.23290681]
[1765561471951,0.19,131.92,131.89,12.81482434]
[1765561472752,0.19,131.92,131.89,12.8150659]
[1765561473057,0.19,131.92,131.9,12.81457433]
[1765561475658,103.8,131.93,131.91,5.23314837]
[1765561475864,104.49,131.93,131.91,5.23314837]
[1765561476027,104.49,131.93,131.9,27.2251788]
[1765561476232,0.2,131.95,131.92,5.23314837]
[1765561476651,0.2,131.95,131.92,0.69]
[1765561477461,0.2,131.95,131.92,7.58017176]
[1765561477462,0.69,131.94,131.92,7.58017176]
[1765561478037,0.2,131.95,131.92,7.58017176]
[1765561478238,0.69,131.94,131.92,7.58017176]
[1765561478540,0.89,131.95,131.92,7.58017176]
[1765561479040,6.12314837,131.95,131.92,7.58017176]
[1765561479369,0.69,131.94,131.92,7.58017176]
[1765561480181,0.2,131.95,131.93,0.69]
[1765561480369,0.2,131.95,131.92,26.53105108]
[1765561480538,0.2,131.95,131.92,27.22105108]
[1765561480861,0.89,131.95,131.92,7.58017176]
[1765561481061,6.12314837,131.95,131.92,8.27017176]
[1765561482074,0.69,131.94,131.91,7.58092638]
[1765561482283,5.92314837,131.94,131.91,7.58092638]
[1765561482758,0.69,131.93,131.91,7.58092638]
[1765561482956,5.92314837,131.94,131.91,7.58092638]
[1765561483178,5.92314837,131.94,131.91,8.27092638]
[1765561485078,0.69,131.94,131.91,7.58092638]
[1765561485376,5.92314837,131.94,131.91,8.27092638]
[1765561485578,109.03314837,131.93,131.91,7.58092638]
[1765561485757,5.23314837,131.92,131.89,7.58193188]
[1765561486084,5.92314837,131.92,131.89,7.58193188]
[1765561486376,5.23314837,131.92,131.89,7.58193188]
[1765561486558,5.92314837,131.92,131.89,7.58193188]
[1765561486763,5.92314837,131.92,131.89,8.27193188]
[1765561489381,10.9681536,131.92,131.89,8.27193188]
[1765561489975,5.92314837,131.92,131.89,8.27193188]
[1765561490375,10.97088562,131.92,131.89,8.27193188]
[1765561490980,5.88314837,131.91,131.88,16.55247474]
[1765561491284,5.88314837,131.91,131.87,7.58313373]
[1765561491285,5.23314837,131.89,131.87,7.58313373]
[1765561491584,10.93088562,131.9,131.87,7.58313373]
[1765561492268,10.93088562,131.9,131.87,8.25313373]
[1765561492870,5.69773725,131.9,131.87,8.25313373]
[1765561493070,10.93088562,131.9,131.87,8.25313373]
[1765561493778,10.93088562,131.9,131.86,7.583801]
[1765561493990,10.93088562,131.9,131.87,0.67]
[1765561494861,10.93088562,131.9,131.87,8.25292697]
[1765561497087,5.04773725,131.9,131.87,7.58292697]
[1765561497272,5.04773725,131.9,131.88,0.67]
[1765561497667,5.04773725,131.9,131.87,7.58292697]
[1765561497866,5.04773725,131.9,131.87,8.25292697]
[1765561498284,5.69773725,131.9,131.87,27.21099173]
[1765561499379,5.04773725,131.9,131.88,0.67]
[1765561499782,5.04773725,131.9,131.87,19.62806476]
[1765561499962,5.69773725,131.9,131.87,19.62806476]
[1765561500163,10.93088562,131.9,131.87,0.67]
[1765561500380,103.8,131.9,131.88,0.67]
[1765561500581,109.68314837,131.9,131.87,0.67]
[1765561500791,103.8,131.9,131.87,0.67]
[1765561500972,8.3,131.93,131.87,6.18747151]
[1765561501173,5.70837103,131.93,131.88,8.97]
[1765561501362,103.8,131.94,131.9,26.53525397]
[1765561501570,0.2,131.95,131.91,13.81747151]
[1765561501762,5.26221513,131.95,131.92,5.90314837]
[1765561501972,5.26221513,131.95,131.93,0.67]
[1765561502387,0.2,131.95,131.93,0.67]
[1765561503265,0.2,131.95,131.94,7.57920266]
[1765561503466,0.2,131.96,131.95,0.28432314]
[1765561503684,0.2,131.99,131.95,6.18747151]
[1765561503898,0.2,131.99,131.97,5.23314837]
[1765561504074,0.2,131.99,131.97,13.53314837]
[1765561504397,0.2,131.99,131.98,5.90314837]
[1765561504985,0.85,131.99,131.95,0.67]
[1765561505193,0.2,131.99,131.95,14.20314837]
[1765561505390,0.2,131.99,131.97,7.57747973]
[1765561505788,0.2,131.99,131.97,13.4806281]
[1765561505971,0.2,131.99,131.97,7.57747973]
[1765561506290,0.2,131.99,131.96,18.94417039]
[1765561506291,0.85,131.99,131.96,7.57802895]
[1765561506465,0.85,131.99,131.96,8.24802895]
[1765561506669,0.2,131.99,131.96,12.81117732]
[1765561506893,0.2,131.99,131.97,6.18747151]
[1765561507189,0.2,131.99,131.97,0.95432314]
[1765561507397,0.2,131.99,131.98,22.0643771]
[1765561509688,0.2,131.99,131.98,16.16122873]
[1765561509873,0.2,131.99,131.98,15.87690559]
[1765561510079,0.2,131.99,131.96,33.14828325]
[1765561510275,0.2,131.99,131.98,7.57690559]
[1765561510489,0.2,131.99,131.98,13.0943771]
[1765561510694,0.2,131.99,131.98,13.7643771]
[1765561511902,0.2,131.99,131.98,13.75487076]
[1765561512981,0.2,131.99,131.98,7.57690559]
[1765561513581,0.2,131.99,131.96,33.13877691]
[1765561513582,0.2,131.99,131.97,7.57747973]
[1765561513787,0.85,131.99,131.97,7.57747973]
[1765561514487,0.85,131.99,131.96,15.87789342]
[1765561514488,0.65,131.98,131.96,15.87789342]
[1765561515297,0.2,131.99,131.96,15.87789342]
[1765561515505,0.85,131.99,131.96,15.87789342]
[1765561516077,0.2,131.99,131.96,16.54789342]
[1765561516284,0.85,131.99,131.96,16.54789342]
[1765561517090,0.65,131.98,131.96,15.87789342]
[1765561517287,0.85,131.99,131.96,15.87789342]
[1765561517490,0.2,131.99,131.98,18.27073323]
[1765561517686,0.2,131.99,131.98,34.43196196]
[1765561518005,0.2,131.99,131.98,35.10196196]
[1765561520100,0.2,132.0,131.98,43.91190688]
[1765561520305,0.2,132.0,131.99,5.91364203]
[1765561521399,0.2,132.0,131.99,13.48997357]
[1765561521703,1e-08,132.01,132.0,9.78426806]
[1765561521884,1e-08,132.01,132.0,23.30791009]
[1765561522494,1e-08,132.01,132.0,14.49796517]
[1765561523409,1e-08,132.01,132.0,22.07372274]
[1765561525384,1e-08,132.01,132.0,16.85008071]
[1765561525577,1e-08,132.01,132.0,22.07372274]
[1765561526299,1e-08,132.01,132.0,30.88366766]
[1765561526498,0.66000001,132.01,131.99,10.60953391]
[1765561526691,5.22364203,132.0,131.94,5.91364203]
[1765561526894,5.22364203,131.95,131.92,7.58035172]
[1765561527090,0.66,131.94,131.92,7.58035172]
[1765561528014,0.66,131.94,131.91,7.86524952]
[1765561528216,0.66,131.98,131.94,13.0470912]
[1765561528419,0.66,131.98,131.95,0.14216157]
[1765561528603,0.66,131.98,131.95,0.28432314]
[1765561529317,0.66,131.98,131.96,7.57805395]
[1765561531915,7.68834246,131.97,131.92,7.58029234]
[1765561532112,27.17925755,131.98,131.93,7.57975641]
[1765561532295,8.34834246,131.97,131.93,7.57942802]
[1765561532503,7.68834246,131.96,131.93,7.57942802]
[1765561532699,8.34834246,131.96,131.93,7.57942802]
[1765561533003,0.66,131.95,131.93,7.57942802]
[1765561533399,0.66,131.95,131.91,26.53250112]
[1765561533609,0.66,131.95,131.92,0.28432314]
[1765561533807,7.68834246,131.94,131.91,26.53250112]
[1765561534005,7.68834246,131.94,131.91,7.58092638]
[1765561534207,8.34834246,131.95,131.91,8.27092638]
[1765561534717,109.82050641,131.98,131.92,0.97432314]
[1765561534718,8.34834246,131.97,131.92,0.97432314]
[1765561535100,0.66,131.96,131.92,0.97432314]
[1765561535507,0.66,131.96,131.93,7.57977715]
[1765561537519,0.66,131.96,131.93,27.21922003]
[1765561537740,8.34834246,131.98,131.93,27.21922003]
[1765561538023,0.66,131.97,131.93,27.21922003]
[1765561538509,128.02428083,132.0,131.94,8.6626656]
[1765561538715,127.36428083,132.0,131.94,8.6626656]
[1765561538922,0.66,131.99,131.94,8.6626656]
[1765561539116,0.66,131.99,131.94,7.9726656]
[1765561539314,0.66000001,132.01,131.96,7.9726656]
[1765561539626,8.34834247,132.01,131.98,7.57690559]
[1765561540100,0.66,132.0,131.98,7.57690559]
[1765561540412,7.68834246,131.99,131.94,18.94760422]
[1765561540723,7.68834246,131.97,131.95,7.57822129]
[1765561541115,0.66,131.97,131.95,7.57822129]
[1765561541515,8.34834246,131.97,131.94,7.57896201]
[1765561541921,0.66,131.96,131.94,7.57896201]
[1765561543046,0.66,131.98,131.94,27.21696867]
[1765561543230,0.66,131.97,131.94,26.52696867]
[1765561545525,0.66,131.97,131.94,7.57896201]
[1765561545734,112.14834246,131.97,131.94,7.57896201]
[1765561545919,104.46,131.97,131.94,26.52696867]
[1765561546317,104.46,131.97,131.94,27.21696867]
[1765561547322,104.46,131.97,131.94,26.52696867]
[1765561548323,0.66,131.96,131.94,26.52696867]
[1765561548950,0.66,131.96,131.94,7.57896201]
[1765561550748,0.66,131.96,131.93,7.57977715]
[1765561552124,8.34442546,131.96,131.93,7.57977715]
[1765561552335,7.68442546,131.95,131.92,7.5801317]
[1765561552544,0.71,131.95,131.92,7.5801317]
[1765561552742,0.71,131.94,131.92,7.5801317]
[1765561553252,0.71,131.94,131.91,7.58089065]
[1765561553754,8.39442546,131.94,131.9,7.58130388]
[1765561554237,0.71,131.93,131.9,7.58130388]
[1765561554620,8.28977715,131.93,131.89,15.88195702]
[1765561554937,5.73687464,131.93,131.88,7.58208936]
[1765561555144,8.39442546,131.92,131.89,7.58201557]
[1765561555526,0.71,131.91,131.89,7.58201557]
[1765561556128,0.71,131.91,131.88,7.58265089]
[1765561556340,8.39442546,131.91,131.87,7.58304581]
[1765561556735,0.71,131.9,131.87,7.58304581]
[1765561557226,0.71,131.9,131.87,8.28304581]
[1765561558152,104.51,131.93,131.89,15.26650143]
[1765561558352,0.71,131.93,131.9,7.68442546]
[1765561558537,0.71,131.93,131.9,0.7]
[1765561559544,9.01,131.95,131.9,8.6687486]
[1765561559751,103.8,131.96,131.92,7.68442546]
[1765561559946,103.8,131.96,131.92,12.34741429]
[1765561560274,0.71,131.95,131.93,7.57977715]
[1765561560928,103.8,131.96,131.93,27.22922003]
[1765561561122,3.34741429,131.98,131.93,26.52922003]
[1765561561344,92.10994492,131.99,131.93,27.22922003]
[1765561561345,0.71,131.97,131.93,27.22922003]
[1765561561546,3.34741429,131.96,131.93,7.57977715]
[1765561561746,0.71,131.97,131.93,7.57977715]
[1765561561747,4.05741429,131.97,131.93,7.57977715]
[1765561562052,0.71,131.98,131.94,0.7]
[1765561562235,15.98438377,131.99,131.94,0.7]
[1765561562440,0.71,131.97,131.95,7.57862826]
[1765561562634,0.71,131.97,131.94,7.57904033]
[1765561563334,0.71,131.97,131.93,18.94944288]
[1765561563335,7.68438377,131.96,131.92,15.87980496]
[1765561563547,7.68438377,131.94,131.91,7.58077235]
[1765561563949,0.71,131.93,131.91,7.58077235]
[1765561564341,0.71,131.93,131.89,35.63892532]
[1765561564342,0.71,131.93,131.9,26.53525397]
[1765561564524,7.68438377,131.95,131.9,27.23525397]
[1765561564729,0.71,131.94,131.9,27.23525397]
[1765561565440,0.71,131.94,131.9,26.53525397]
[1765561566234,0.71,131.94,131.9,27.23525397]
[1765561566432,103.8,131.95,131.91,8.66870691]
[1765561566647,0.71,131.96,131.92,15.98438377]
[1765561566828,0.71,131.96,131.92,16.68438377]
[1765561567028,0.71,131.96,131.93,0.7]
[1765561567430,0.71,131.96,131.92,8.3]
[1765561567431,8.39438377,131.96,131.92,8.3]
[1765561567625,8.39438377,131.96,131.92,9.0]
[1765561567854,0.71,131.95,131.92,9.0]
[1765561568449,0.71,131.95,131.93,7.57977715]
[1765561568648,0.71,131.96,131.93,7.57977715]
[1765561570040,0.71,131.97,131.93,8.27977715]
[1765561570456,5.73913792,131.97,131.93,27.22922003]
[1765561570841,0.71,131.96,131.93,27.22922003]
[1765561571042,0.71,131.96,131.93,26.52922003]
[1765561572439,0.71,131.96,131.93,7.57977715]
[1765561573259,7.68438377,131.95,131.92,16.58025062]
[1765561573457,5.03816241,131.94,131.91,7.58074715]
[1765561573643,0.71,131.95,131.92,7.58032826]
[1765561574346,5.03891701,131.94,131.91,7.58069049]
[1765561574556,5.03880132,131.93,131.9,7.58126976]
[1765561574865,0.71,131.93,131.9,7.58126976]
[1765561575363,12.72372315,131.92,131.89,15.88198922]
[1765561575569,7.68438377,131.92,131.89,15.88198922]
[1765561575869,0.71,131.92,131.89,15.88198922]
[1765561576671,0.71,131.92,131.89,16.58198922]
[1765561576974,0.71,131.92,131.89,15.88198922]
[1765561577477,5.03636917,131.92,131.9,0.7]
[1765561577640,5.74636917,131.94,131.9,0.7]
[1765561577841,5.74636917,131.94,131.89,42.52156292]
[1765561577842,5.03636917,131.93,131.89,42.52156292]
[1765561578042,8.36438377,131.93,131.89,15.88198922]
[1765561578341,0.68,131.92,131.89,15.88198922]
[1765561580752,0.68,131.92,131.89,16.58198922]
[1765561581770,8.36438377,131.92,131.89,15.88198922]
[1765561581954,9.07404224,131.92,131.89,15.88198922]
[1765561582454,0.72,131.91,131.89,15.88198922]
[1765561583944,0.72,131.91,131.89,7.58198922]
[1765561584361,109.56390778,131.92,131.89,7.58198922]
[1765561584665,8.39383818,131.91,131.88,7.58226409]
[1765561584863,5.04389943,131.9,131.88,7.58226409]
[1765561585070,0.72,131.9,131.88,7.58226409]
[1765561585470,0.72,131.9,131.85,3.63494673]
[1765561585471,5.03726817,131.89,131.85,11.65062359]
[1765561585657,4.07062359,131.9,131.85,9.0]
[1765561585854,5.75719341,131.89,131.86,7.583801]
[1765561586054,4.07062359,131.89,131.86,7.583801]
[1765561586251,5.0352328,131.89,131.87,0.7]
[1765561586460,5.0352328,131.91,131.87,0.7]
[1765561586677,0.72,131.91,131.87,0.7]
[1765561587071,0.72,131.91,131.86,29.89392709]
[1765561587280,4.07062359,131.91,131.87,0.7]
[1765561587472,4.07062359,131.91,131.86,27.2433035]
[1765561587681,0.72,131.9,131.86,27.2433035]
[1765561587992,0.72,131.9,131.87,0.7]
[1765561588196,16.39771479,131.89,131.83,0.7]
[1765561588364,3.35062359,131.87,131.83,0.7]
[1765561588567,8.38756873,131.87,131.84,7.58481592]
[1765561588776,4.07062359,131.87,131.84,7.58481592]
[1765561588984,0.72,131.86,131.83,0.7]
[1765561589388,9.10615469,131.87,131.83,0.7]
[1765561589775,103.8,131.88,131.85,3.63494673]
[1765561589981,0.72,131.91,131.86,4.05062359]
[1765561590181,0.72,131.9,131.86,3.35062359]
[1765561590381,5.03674213,131.91,131.88,3.35062359]
[1765561590693,5.75674213,131.93,131.89,0.7]
[1765561591072,0.72,131.92,131.89,0.7]
[1765561591398,5.03674213,131.93,131.9,0.7]
[1765561591574,75.0,131.96,131.91,3.35062359]
[1765561591575,83.3,131.96,131.91,3.35062359]
[1765561591767,9.66975161,131.99,131.93,10.93040074]
[1765561591971,5.04463049,131.98,131.94,5.2284879]
[1765561592276,13.5284879,132.0,131.93,21.80826505]
[1765561592277,10.99311839,131.99,131.93,21.80826505]
[1765561592591,5.04463049,131.98,131.93,21.80826505]
[1765561592799,5.2284879,131.97,131.93,8.3]
[1765561592969,10.27374714,131.96,131.92,7.58015861]
[1765561593175,0.72,131.96,131.92,8.28015861]
[1765561593388,5.76511325,131.96,131.92,8.28015861]
[1765561594305,0.72,131.95,131.92,7.58015861]
[1765561594501,0.72,131.95,131.92,8.28015861]
[1765561594689,5.76511325,131.96,131.92,8.28015861]
[1765561595397,0.72,131.96,131.92,8.28015861]
[1765561595698,5.76702666,131.96,131.92,8.28015861]
[1765561596075,0.72,131.96,131.92,8.28015861]
[1765561596286,0.72,131.95,131.92,8.28015861]
[1765561596796,121.33533832,131.94,131.88,19.65519097]
[1765561597098,124.58958538,131.94,131.88,27.95519097]
[1765561597300,0.72,131.93,131.88,27.95519097]
[1765561597502,0.72,131.93,131.88,40.44477635]
[1765561597708,112.1,131.94,131.89,32.42804536]
[1765561598008,103.8,131.94,131.9,26.53437692]
[1765561598170,103.8,131.94,131.91,0.7]
[1765561598709,104.52,131.94,131.9,27.23437692]
[1765561599277,117.00958538,131.94,131.9,27.23437692]
[1765561599478,103.8,131.94,131.9,26.53437692]
[1765561599786,103.8,131.94,131.91,0.7]
[1765561599983,103.8,131.94,131.92,7.58035172]
[1765561600177,13.0470912,131.98,131.93,0.7]
[1765561600402,5.04780986,131.97,131.93,0.7]
[1765561600695,0.72,131.97,131.93,0.7]
[1765561601289,13.0470912,131.98,131.93,0.98432314]
[1765561601492,0.72000001,132.01,131.96,12.77390852]
[1765561601692,0.72000001,132.01,131.96,0.28432314]
[1765561601893,12.48958538,132.0,131.96,0.7]
[1765561602087,8.29527156,132.01,131.97,7.57747973]
[1765561602088,20.78485694,132.01,131.97,7.57747973]
[1765561602289,0.72,132.0,131.97,7.57747973]
[1765561602907,18.26242125,132.0,131.97,7.57747973]
[1765561603203,13.20958538,132.0,131.97,7.57747973]
[1765561603379,0.72,132.0,131.97,7.57747973]
[1765561604005,20.06485694,132.01,131.97,0.7]
[1765561604208,20.78485694,132.01,131.97,0.7]
[1765561604904,0.72,132.0,131.97,0.7]
[1765561605092,1e-08,132.01,131.97,0.7]
[1765561605408,1e-08,132.01,132.0,12.77390852]
[1765561605597,1e-08,132.01,132.0,21.07390852]
[1765561605793,1e-08,132.01,132.0,21.77390852]
[1765561606318,1e-08,132.01,132.0,29.34966609]
[1765561606627,1e-08,132.01,132.0,38.15961101]
[1765561606927,8.5,132.1,132.08,0.28432314]
[1765561606928,0.2,132.1,132.08,0.28432314]
[1765561607093,0.2,132.1,132.09,21.07390852]
[1765561607283,0.2,132.12,132.1,0.28432314]
[1765561607485,0.2,132.12,132.1,13.47390852]
[1765561607915,0.2,132.12,132.11,0.7]
[1765561608311,0.2,132.12,132.11,8.55377284]
[1765561608694,0.2,132.12,132.1,7.56986795]
[1765561609905,0.2,132.12,132.09,16.57042859]
[1765561610224,12.68958538,132.12,132.1,7.56977757]